fUSD/lending_fUSD_20240523
["ID","MTS","AMOUNT","RATE_DAILY","PERIOD"]
[327790645,1716484241655,-343.91479615,0.0002382,2]
[327790646,1716484241665,-500.0,0.0002382,2]
[327790647,1716484241675,-261.68,0.0002382,2]
[327790648,1716484241685,-500.0,0.0002382,2]
[327790649,1716484241695,-500.0,0.0002382,2]
[327790650,1716484241705,-500.0,0.0002382,2]
[327790651,1716484241715,-500.0,0.0002382,2]
[327790652,1716484241729,-500.0,0.0002382,2]
[327790653,1716484241739,-500.0,0.0002382,2]
[327790654,1716484241749,-500.0,0.0002382,2]
[327790655,1716484241759,-500.0,0.0002382,2]
[327790656,1716484241769,-500.0,0.0002382,2]
[327790657,1716484241779,-500.0,0.0002382,2]
[327790658,1716484241788,-500.0,0.0002382,2]
[327790659,1716484241798,-398.35037197,0.0002382,2]
[327790660,1716484241808,-500.0,0.0002382,2]
[327790661,1716484241818,-586.18,0.0002382,2]
[327790662,1716484241827,-564.49353587,0.0002382,2]
[327790663,1716484241838,-500.0,0.0002382,2]
[327790664,1716484241849,-274.69,0.0002382,2]
[327790665,1716484241862,-500.0,0.0002382,2]
[327790666,1716484241871,-500.0,0.0002382,2]
[327790667,1716484241881,-500.0,0.0002382,2]
[327790668,1716484241891,-500.0,0.0002382,2]
[327790669,1716484241901,-500.0,0.0002382,2]
[327790670,1716484241911,-500.0,0.0002382,2]
[327790671,1716484241921,-500.0,0.0002382,2]
[327790672,1716484241934,-500.0,0.0002382,2]
[327790673,1716484241944,-500.0,0.0002382,2]
[327790674,1716484241954,-500.0,0.0002382,2]
[327790675,1716484241964,-500.0,0.0002382,2]
[327790676,1716484241974,-500.0,0.0002382,2]
[327790677,1716484241984,-500.0,0.00023821,2]
[327790678,1716484241994,-500.0,0.00023821,2]
[327790679,1716484242004,-500.0,0.00023821,2]
[327790680,1716484242013,-500.0,0.00023821,2]
[327790681,1716484242023,-500.0,0.00023821,2]
[327790682,1716484242032,-500.0,0.00023821,2]
[327790683,1716484242040,-500.0,0.00023821,2]
[327790684,1716484242050,-273.97164867,0.00023821,2]
[327790685,1716484242060,-784.25,0.00023821,2]
[327790686,1716484242069,-276.32,0.00023821,2]
[327790687,1716484242079,-569.28,0.00023821,2]
[327790688,1716484242088,-500.0,0.00023821,2]
[327790689,1716484242098,-230.28,0.00023821,2]
[327790690,1716484242107,-248.86830454,0.00023821,2]
[327790691,1716484242117,-155.39,0.00023821,2]
[327790692,1716484242127,-500.0,0.00023821,2]
[327790693,1716484242137,-500.0,0.00023821,2]
[327790694,1716484242148,-500.0,0.00023821,2]
[327790695,1716484242158,-500.0,0.00023821,2]
[327790696,1716484242167,-531.18540718,0.00023821,2]
[327790697,1716484242177,-500.0,0.00023821,2]
[327790698,1716484242188,-500.0,0.00023821,2]
[327790699,1716484242197,-234.96,0.00023821,2]
[327790700,1716484242207,-500.0,0.00023821,2]
[327790701,1716484242217,-500.0,0.00023821,2]
[327790702,1716484242227,-500.0,0.00023821,2]
[327790703,1716484242236,-851.83,0.00023821,2]
[327790704,1716484242245,-500.0,0.00023821,2]
[327790705,1716484242255,-500.0,0.00023821,2]
[327790706,1716484242265,-812.93,0.00023821,2]
[327790707,1716484242274,-500.0,0.00023821,2]
[327790708,1716484242283,-322.0,0.00023821,2]
[327790709,1716484242293,-170.28128052,0.00023843,2]
[327790710,1716484242564,-197.96067467,0.0002389,2]
[327790711,1716484242577,-170.28128052,0.0002389,2]
[327790712,1716484242586,-2221.97544085,0.00023898,2]
[327790713,1716484242596,-212.74888776,0.00023899,21]
[327790714,1716484242607,-500.0,0.00023899,2]
[327790715,1716484242617,-488.17195078,0.00023899,2]
[327790716,1716484242626,-500.0,0.00023899,2]
[327790717,1716484242635,-500.0,0.00023899,2]
[327790718,1716484242645,-500.0,0.00023899,2]
[327790719,1716484242654,-500.0,0.00023899,2]
[327790720,1716484242663,-500.0,0.00023899,2]
[327790721,1716484242673,-717.88,0.00023899,2]
[327790722,1716484242683,-6815.18,0.00023899,2]
[327790723,1716484242692,-500.0,0.00023899,2]
[327790724,1716484242701,-500.0,0.00023899,2]
[327790725,1716484242710,-500.0,0.00023899,2]
[327790726,1716484242719,-500.0,0.00023899,2]
[327790727,1716484242729,-500.0,0.00023899,2]
[327790728,1716484242739,-500.0,0.00023899,2]
[327790729,1716484242748,-1473.77,0.00023899,2]
[327790730,1716484242758,-500.0,0.00023899,2]
[327790731,1716484242768,-903.18,0.00023899,2]
[327790732,1716484242777,-3542.29640171,0.000239,2]
[327790733,1716484242786,-166.74979692,0.000239,2]
[327790734,1716484242796,-1000.0,0.000239,2]
[327790735,1716484242805,-168.73715165,0.000239,2]
[327790736,1716484242814,-3762.8056,0.000239,2]
[327790738,1716484242827,-798.1488904,0.000239,2]
[327790740,1716484242836,-165.23647074,0.000239,2]
[327790742,1716484242846,-220.60596458,0.00023945,2]
[327790744,1716484242860,-500.0,0.00023945,2]
[327790746,1716484242870,-292.32412002,0.00023945,2]
[327790748,1716484242879,-500.0,0.00023945,2]
[327790750,1716484242888,-393.59021994,0.00023945,2]
[327790752,1716484242898,-500.0,0.00023945,2]
[327790754,1716484242908,-314.37992668,0.00023945,2]
[327790756,1716484242917,-598.11,0.00023945,2]
[327790758,1716484242928,-205.43,0.00023945,2]
[327790760,1716484242937,-500.0,0.00023945,2]
[327790762,1716484242947,-500.0,0.00023945,2]
[327790764,1716484242956,-500.0,0.00023945,2]
[327790766,1716484242965,-500.0,0.00023945,2]
[327790768,1716484242974,-500.0,0.00023945,2]
[327790770,1716484242983,-500.0,0.00023945,2]
[327790771,1716484242992,-583.26,0.00023945,2]
[327790773,1716484243002,-248.56580255,0.00023945,2]
[327790775,1716484243011,-347.16,0.00023945,2]
[327790777,1716484243021,-500.0,0.00023945,2]
[327790779,1716484243031,-555.74,0.00023945,2]
[327790780,1716484243040,-500.0,0.00023945,2]
[327790781,1716484243050,-500.0,0.00023945,2]
[327790782,1716484243059,-500.0,0.00023945,2]
[327790783,1716484243069,-500.0,0.00023945,2]
[327790784,1716484243078,-500.0,0.00023945,2]
[327790785,1716484243087,-566.19,0.00023945,2]
[327790786,1716484243097,-500.0,0.00023945,2]
[327790787,1716484243106,-500.0,0.00023945,2]
[327790788,1716484243116,-571.87,0.00023945,2]
[327790789,1716484243125,-561.61,0.00023945,2]
[327790790,1716484243134,-500.0,0.00023945,2]
[327790791,1716484243144,-500.0,0.00023945,2]
[327790792,1716484243153,-500.0,0.00023945,2]
[327790793,1716484243164,-500.0,0.00023945,2]
[327790794,1716484243174,-500.0,0.00023945,2]
[327790795,1716484243194,-1356.02,0.00023945,2]
[327790798,1716484243204,-500.0,0.00023945,2]
[327790799,1716484243214,-500.0,0.00023945,2]
[327790800,1716484243223,-500.0,0.00023945,2]
[327790802,1716484243233,-157.92069993,0.00023945,2]
[327790804,1716484243243,-500.0,0.00023945,2]
[327790805,1716484243253,-500.0,0.00023945,2]
[327790806,1716484243263,-500.0,0.00023945,2]
[327790807,1716484243273,-500.0,0.00023945,2]
[327790808,1716484243282,-500.0,0.00023945,2]
[327790809,1716484243294,-500.0,0.00023945,2]
[327790810,1716484243304,-150.0,0.00023945,2]
[327790811,1716484243313,-500.0,0.00023945,2]
[327790812,1716484243325,-500.0,0.00023945,2]
[327790813,1716484243335,-500.0,0.00023945,2]
[327790814,1716484243345,-500.0,0.00023945,2]
[327790815,1716484243356,-959.53,0.00023945,2]
[327790816,1716484243366,-362.23,0.00023945,2]
[327790817,1716484243376,-245.17535618,0.00023945,2]
[327790818,1716484243386,-500.0,0.00023945,2]
[327790819,1716484243396,-500.0,0.00023945,2]
[327790820,1716484243406,-236.21,0.00023945,2]
[327790821,1716484243416,-706.32,0.00023945,2]
[327790822,1716484243426,-1011.09,0.00023945,2]
[327790823,1716484243436,-500.0,0.00023945,2]
[327790824,1716484243445,-500.0,0.00023945,2]
[327790825,1716484243455,-500.0,0.00023945,2]
[327790826,1716484243465,-1134.57,0.00023945,2]
[327790828,1716484243474,-502.55,0.00023945,2]
[327790830,1716484243484,-450.28684871,0.00023945,2]
[327790832,1716484243493,-995.09,0.00023945,2]
[327790834,1716484243504,-2458.12,0.00023945,2]
[327790836,1716484243514,-500.0,0.00023945,2]
[327790839,1716484243524,-500.0,0.00023945,2]
[327790841,1716484243533,-500.0,0.00023945,2]
[327790842,1716484243543,-1202.07,0.00023945,2]
[327790844,1716484243552,-500.0,0.00023945,2]
[327790845,1716484243562,-500.0,0.00023945,2]
[327790846,1716484243573,-500.0,0.00023945,2]
[327790847,1716484243582,-500.0,0.00023945,2]
[327790848,1716484243592,-878.22,0.00023945,2]
[327790849,1716484243602,-500.0,0.00023945,2]
[327790850,1716484243612,-500.0,0.00023945,2]
[327790851,1716484243622,-500.0,0.00023945,2]
[327790852,1716484243632,-500.0,0.00023945,2]
[327790853,1716484243642,-548.74,0.00023945,2]
[327790854,1716484243651,-500.0,0.00023945,2]
[327790855,1716484243661,-500.0,0.00023945,2]
[327790856,1716484243671,-1555.92,0.00023945,2]
[327790857,1716484243681,-683.22,0.00023945,2]
[327790858,1716484243690,-500.0,0.00023945,2]
[327790859,1716484243699,-500.0,0.00023945,2]
[327790860,1716484243709,-500.0,0.00023945,2]
[327790861,1716484243719,-500.0,0.00023945,2]
[327790862,1716484243729,-500.0,0.00023945,2]
[327790863,1716484243739,-500.0,0.00023945,2]
[327790864,1716484243749,-1204.01,0.00023945,2]
[327790865,1716484243759,-500.0,0.00023945,2]
[327790866,1716484243769,-500.0,0.00023945,2]
[327790867,1716484243778,-500.0,0.00023945,2]
[327790868,1716484243788,-500.0,0.00023945,2]
[327790869,1716484243798,-500.0,0.00023945,2]
[327790870,1716484243807,-506.44,0.00023945,2]
[327790871,1716484243819,-695.51,0.00023945,2]
[327790872,1716484243830,-552.03,0.00023945,2]
[327790873,1716484243840,-500.0,0.00023945,2]
[327790874,1716484243851,-500.0,0.00023945,2]
[327790875,1716484243863,-427.33598155,0.00023945,2]
[327790876,1716484243873,-8130.0,0.00023945,2]
[327790877,1716484243883,-50000.0,0.0002399,2]
[327790878,1716484243894,-151.66,0.0002399,2]
[327790879,1716484243904,-151.66,0.0002399,2]
[327790880,1716484243913,-151.66,0.0002399,2]
[327790881,1716484243923,-151.66,0.0002399,2]
[327790882,1716484243935,-42853.36077438,0.00023997,2]
[327790883,1716484243945,-2946.60548514,0.00023998,2]
[327790884,1716484243955,-200.65016929,0.00023998,2]
[327790885,1716484243965,-155.0,0.00023999,2]
[327790886,1716484243974,-410.39631753,0.00023999,2]
[327790887,1716484243984,-730.13274306,0.00023999,2]
[327790888,1716484243994,-512.0,0.00024,2]
[327790889,1716484244004,-51319.71018611,0.00024,15]
[327790890,1716484244014,-223381.44023555,0.00024,5]
[327790891,1716484244309,-500.0,0.00023799,2]
[327790892,1716484244319,-604.73378901,0.00023799,2]
[327790893,1716484244331,-888.50000003,0.00023799,2]
[327790894,1716484244343,-294.14994472,0.00023799,2]
[327790895,1716484244379,-610.00626624,0.00023799,2]
[327790896,1716484244390,-500.0,0.00023799,2]
[327790897,1716484244400,-610.03143983,0.00024,5]
[327790898,1716484244411,-297.95376087,0.00024,5]
[327790899,1716484244424,-293.30521316,0.00024,5]
[327790900,1716484244437,-580.39258057,0.00024,5]
[327790901,1716484244449,-30892.28999999,0.00024,5]
[327790902,1716484244481,-416.63500193,0.00024,5]
[327790903,1716484246312,-379802.97205968,0.00024,5]
[327790904,1716484246325,-10128.36215915,0.00024,5]
[327790953,1716484258013,265.329176,0.00019846,2]
[327790954,1716484258196,187.022284,0.00019846,2]
[327790955,1716484263244,612.95556194,0.0001785,2]
[327790956,1716484267246,177.228727,0.00019846,2]
[327790957,1716484320051,290.54141611,0.00017259,2]
[327790958,1716484322536,150.0,0.00019725,2]
[327790959,1716484415837,152.27,0.00027068,30]
[327790960,1716484419274,5580.94223201,0.00016695,5]
[327790961,1716484502696,150.0,0.00019725,2]
[327790962,1716484570231,19498.47414158,0.00017259,2]
[327790963,1716484636654,1869.25009887,0.00017259,2]
[327790964,1716484645107,290.54141611,0.00017533,2]
[327790965,1716484647616,290.54141611,0.00019451,2]
[327790966,1716484650114,290.54141611,0.00019451,2]
[327790967,1716484654637,290.54141611,0.00019451,2]
[327790968,1716484659116,290.54141611,0.00019451,2]
[327790969,1716484672598,167.24,0.00013973,2]
[327790970,1716484682531,150.0,0.00019725,2]
[327790971,1716484719304,2265.51936799,0.00016695,5]
[327790972,1716484802207,150.0,0.00016695,2]
[327790973,1716484802409,150.0,0.00016695,2]
[327790974,1716484802600,150.0,0.00016695,2]
[327790975,1716484802785,150.0,0.00016695,2]
[327790976,1716484802983,150.0,0.00016695,2]
[327790977,1716484803181,150.0,0.00016695,2]
[327790978,1716484803429,150.0,0.00016695,2]
[327790979,1716484803585,150.0,0.00016695,2]
[327790980,1716484803765,166.21515726,0.00016695,2]
[327790981,1716484862523,150.0,0.00019725,2]
[327790982,1716484953646,290.54141611,0.00019725,2]
[327790983,1716484980278,152.27,0.00027068,30]
[327790984,1716485042568,150.0,0.00019725,2]
[327790985,1716485154930,901.36,0.00019646,2]
[327790986,1716485188783,159.73,0.00013973,2]
[327790987,1716485222629,150.0,0.00019725,2]
[327790988,1716485222667,150.0,0.00019725,2]
[327790996,1716485292660,536.21671872,0.00017259,2]
[327790998,1716485381279,-159.73,0.00020447,2]
[327790999,1716485381303,-1294.0,0.000205,3]
[327791000,1716485381324,-2750.0,0.00021,2]
[327791001,1716485381346,-827.67830635,0.00021,2]
[327791002,1716485381367,-843.09,0.00021444,2]
[327791003,1716485381390,-64935.63232471,0.00021488,2]
[327791004,1716485381411,-23890.0,0.00021493,2]
[327791005,1716485381432,-300.0,0.00021498,2]
[327791006,1716485381453,-19260.62,0.00021498,2]
[327791007,1716485381474,-1364.24936894,0.00021498,2]
[327791008,1716485402594,150.0,0.00019725,2]
[327791022,1716485432650,-3814.0,0.00021498,2]
[327791023,1716485432662,-4821.74063106,0.00021498,2]
[327791024,1716485432672,-443.16,0.00021498,2]
[327791025,1716485432681,-499.99,0.00021498,2]
[327791026,1716485432691,-800.0,0.00021506,2]
[327791027,1716485432700,-312.94,0.00021515,2]
[327791028,1716485432710,-250.0,0.00021538,2]
[327791029,1716485432719,-1202.12,0.00021545,2]
[327791030,1716485432730,-250.0,0.00021562,2]
[327791031,1716485432739,-150.0,0.00021579,2]
[327791032,1716485432750,-187.73601207,0.00021598,2]
[327791033,1716485432759,-303.65,0.00021598,2]
[327791034,1716485432769,-1800.19,0.00021598,2]
[327791035,1716485432778,-188.18,0.0002166,2]
[327791036,1716485432787,-150.99,0.00021698,2]
[327791038,1716485432796,-150.99,0.00021698,2]
[327791039,1716485432805,-1552.46,0.00021698,2]
[327791041,1716485432815,-210.0,0.00021698,2]
[327791043,1716485432825,-901.36,0.0002191,2]
[327791045,1716485432834,-200.0,0.00021917,2]
[327791046,1716485432843,-185.61,0.00021918,2]
[327791048,1716485432853,-2000.0,0.00021918,2]
[327791050,1716485432863,-178.75,0.00021918,2]
[327791052,1716485432872,-854.51,0.0002222,2]
[327791053,1716485432881,-170.0,0.00022221,2]
[327791055,1716485432891,-177.68,0.00022246,2]
[327791057,1716485432900,-152.40666744,0.00022602,2]
[327791059,1716485432908,-161.44222684,0.00022834,2]
[327791060,1716485432917,-2800.0,0.00023,2]
[327791062,1716485432926,-188.19,0.00023093,2]
[327791064,1716485432936,-152.40666744,0.00023112,2]
[327791066,1716485432946,-153.55433202,0.00023278,2]
[327791067,1716485432955,-151.77,0.00023314,2]
[327791070,1716485432964,-350.73,0.00023314,2]
[327791073,1716485432973,-150.0,0.00023314,2]
[327791076,1716485432982,-151.1,0.00023314,2]
[327791078,1716485432991,-150.0,0.00023314,2]
[327791081,1716485433001,-150.0,0.00023314,2]
[327791083,1716485433010,-150.0,0.00023314,2]
[327791085,1716485433020,-150.0,0.00023314,2]
[327791086,1716485433029,-150.0,0.00023314,2]
[327791088,1716485433039,-150.0,0.00023314,2]
[327791090,1716485433048,-150.0,0.00023314,2]
[327791091,1716485433058,-150.0,0.00023314,2]
[327791093,1716485433067,-150.0,0.00023314,2]
[327791095,1716485433076,-150.0,0.00023314,2]
[327791097,1716485433086,-151.56768367,0.00023353,2]
[327791099,1716485433096,-150.97582734,0.00023466,2]
[327791100,1716485433105,-4679.17538045,0.00023599,2]
[327791101,1716485433114,-46137.51637526,0.00023599,2]
[327791102,1716485433124,-3736.687,0.00023695,2]
[327791103,1716485433133,-500.0,0.00023699,2]
[327791104,1716485433143,-500.0,0.00023699,2]
[327791105,1716485433152,-5900.04,0.00023699,2]
[327791106,1716485433163,-500.0,0.00023699,2]
[327791107,1716485433172,-2297.5,0.00023699,2]
[327791108,1716485433181,-211.80690603,0.00023699,2]
[327791109,1716485433191,-500.0,0.00023699,2]
[327791110,1716485433200,-500.0,0.00023699,2]
[327791111,1716485433211,-500.0,0.00023699,2]
[327791112,1716485433222,-500.0,0.00023699,2]
[327791113,1716485433232,-1299.52,0.00023699,2]
[327791114,1716485433241,-500.0,0.00023699,2]
[327791115,1716485433250,-500.0,0.00023699,2]
[327791116,1716485433260,-672.78,0.00023699,2]
[327791117,1716485433271,-500.0,0.00023699,2]
[327791118,1716485433281,-500.0,0.00023699,2]
[327791119,1716485433291,-500.0,0.00023699,2]
[327791120,1716485433302,-500.0,0.00023699,2]
[327791121,1716485433312,-883.99,0.00023699,2]
[327791122,1716485433321,-500.0,0.00023699,2]
[327791123,1716485433331,-942.7,0.00023699,2]
[327791124,1716485433340,-500.0,0.00023699,2]
[327791125,1716485433349,-500.0,0.00023699,2]
[327791126,1716485433359,-502.83,0.00023699,2]
[327791127,1716485433368,-636.37,0.00023699,2]
[327791128,1716485433377,-500.0,0.00023699,2]
[327791129,1716485433387,-500.0,0.00023699,2]
[327791130,1716485433395,-500.0,0.00023699,2]
[327791131,1716485433405,-1113.28,0.00023699,2]
[327791132,1716485433415,-500.0,0.00023699,2]
[327791133,1716485433424,-654.75,0.00023699,2]
[327791134,1716485433434,-500.0,0.00023699,2]
[327791135,1716485433443,-500.27,0.00023699,2]
[327791136,1716485433452,-500.0,0.00023699,2]
[327791137,1716485433462,-500.0,0.00023699,2]
[327791138,1716485433471,-500.0,0.00023699,2]
[327791139,1716485433480,-500.0,0.00023699,2]
[327791140,1716485433490,-500.0,0.00023699,2]
[327791141,1716485433696,-673.58,0.00023699,2]
[327791142,1716485433712,-500.0,0.00023699,2]
[327791143,1716485433722,-501.06,0.00023699,2]
[327791144,1716485433732,-796.3,0.00023699,2]
[327791145,1716485433744,-500.0,0.00023699,2]
[327791146,1716485433754,-587.82,0.00023699,2]
[327791147,1716485433764,-681.22,0.00023699,2]
[327791148,1716485433774,-500.0,0.00023699,2]
[327791149,1716485433784,-944.05,0.00023699,2]
[327791150,1716485433793,-1256.84,0.00023699,2]
[327791151,1716485433803,-666.53,0.00023699,2]
[327791152,1716485433814,-500.0,0.00023699,2]
[327791153,1716485433824,-837.54,0.00023699,2]
[327791154,1716485433834,-500.0,0.00023699,2]
[327791155,1716485433844,-500.0,0.00023699,2]
[327791156,1716485433854,-500.0,0.00023699,2]
[327791157,1716485433865,-500.0,0.00023699,2]
[327791158,1716485433875,-529.03,0.00023699,2]
[327791159,1716485433885,-545.2909,0.000237,2]
[327791160,1716485433895,-95646.745,0.000237,2]
[327791161,1716485433905,-5079.69634499,0.0002371,2]
[327791162,1716485433915,-923.48489,0.0002376,2]
[327791163,1716485433925,-152.40666744,0.00023781,2]
[327791164,1716485433935,-500.0,0.00023797,2]
[327791165,1716485433945,-406.07524138,0.00023798,2]
[327791166,1716485433955,-4494.18375395,0.00023798,2]
[327791167,1716485433964,-500.0,0.00023798,2]
[327791168,1716485433973,-500.0,0.00023798,2]
[327791169,1716485433983,-678.9,0.00023798,2]
[327791170,1716485433994,-500.0,0.00023798,2]
[327791171,1716485434004,-500.0,0.00023798,2]
[327791172,1716485434014,-500.0,0.00023798,2]
[327791173,1716485434024,-500.0,0.00023798,2]
[327791174,1716485434034,-500.0,0.00023798,2]
[327791175,1716485434044,-573.19,0.00023798,2]
[327791176,1716485434054,-558.96,0.00023798,2]
[327791177,1716485434064,-532.58,0.00023798,2]
[327791178,1716485434074,-500.0,0.00023798,2]
[327791179,1716485434084,-500.0,0.00023798,2]
[327791180,1716485434093,-500.0,0.00023798,2]
[327791181,1716485434103,-500.0,0.00023798,2]
[327791182,1716485434113,-542.6,0.00023798,2]
[327791183,1716485434122,-500.0,0.00023798,2]
[327791184,1716485434132,-548.04,0.00023798,2]
[327791185,1716485434141,-500.0,0.00023798,2]
[327791186,1716485434151,-500.0,0.00023798,2]
[327791187,1716485434160,-690.08,0.00023798,2]
[327791188,1716485434170,-500.0,0.00023798,2]
[327791189,1716485434181,-500.0,0.00023798,2]
[327791190,1716485434190,-500.0,0.00023798,2]
[327791191,1716485434200,-500.0,0.00023798,2]
[327791192,1716485434213,-500.0,0.00023798,2]
[327791193,1716485434223,-500.0,0.00023798,2]
[327791194,1716485434233,-500.0,0.00023798,2]
[327791195,1716485434243,-500.0,0.00023798,2]
[327791196,1716485434252,-500.0,0.00023798,2]
[327791197,1716485434263,-500.0,0.00023798,2]
[327791198,1716485434273,-500.0,0.00023798,2]
[327791199,1716485434284,-150.0,0.00023798,2]
[327791200,1716485434294,-569.38698919,0.00023798,2]
[327791201,1716485434304,-500.0,0.00023798,2]
[327791202,1716485434314,-500.0,0.00023798,2]
[327791203,1716485434323,-500.0,0.00023798,2]
[327791204,1716485434333,-500.0,0.00023798,2]
[327791205,1716485434342,-234.1,0.00023798,2]
[327791206,1716485434352,-676.89,0.00023798,2]
[327791207,1716485434361,-500.0,0.00023798,2]
[327791208,1716485434371,-1087.3,0.00023798,2]
[327791209,1716485434380,-500.0,0.00023798,2]
[327791210,1716485434391,-2355.69,0.00023798,2]
[327791211,1716485434401,-500.0,0.00023798,2]
[327791212,1716485434411,-500.0,0.00023798,2]
[327791213,1716485434420,-1151.99,0.00023798,2]
[327791214,1716485434430,-500.0,0.00023798,2]
[327791215,1716485434440,-165.62824533,0.00023798,2]
[327791216,1716485434450,-500.0,0.00023798,2]
[327791217,1716485434460,-500.0,0.00023798,2]
[327791218,1716485434469,-500.0,0.00023798,2]
[327791219,1716485434479,-500.0,0.00023798,2]
[327791220,1716485434488,-500.0,0.00023798,2]
[327791221,1716485434498,-525.88,0.00023798,2]
[327791222,1716485434508,-1491.09,0.00023798,2]
[327791223,1716485434518,-500.0,0.00023798,2]
[327791224,1716485434527,-612.23139206,0.00023798,2]
[327791225,1716485434537,-500.0,0.00023798,2]
[327791226,1716485434546,-500.0,0.00023798,2]
[327791227,1716485434555,-500.0,0.00023798,2]
[327791228,1716485434565,-1153.84,0.00023798,2]
[327791229,1716485434575,-500.0,0.00023798,2]
[327791230,1716485434585,-312.38,0.00023798,2]
[327791231,1716485434595,-500.0,0.00023798,2]
[327791232,1716485434605,-500.0,0.00023798,2]
[327791233,1716485434614,-500.0,0.00023798,2]
[327791234,1716485434624,-500.0,0.00023799,2]
[327791235,1716485434634,-500.0,0.00023799,2]
[327791236,1716485434643,-500.0,0.00023799,2]
[327791237,1716485434653,-500.0,0.00023799,2]
[327791238,1716485434662,-500.0,0.00023799,2]
[327791239,1716485434672,-500.0,0.00023799,2]
[327791240,1716485434681,-500.0,0.00023799,2]
[327791241,1716485434691,-500.0,0.00023799,2]
[327791242,1716485434701,-631.21624339,0.00023799,2]
[327791243,1716485434711,-500.0,0.00023799,2]
[327791244,1716485434719,-500.0,0.00023799,2]
[327791245,1716485434729,-500.0,0.00023799,2]
[327791246,1716485434739,-561.75,0.00023799,2]
[327791247,1716485434748,-500.0,0.00023799,2]
[327791248,1716485434762,-500.0,0.00023799,2]
[327791249,1716485434772,-500.0,0.00023799,2]
[327791250,1716485434782,-396.3698377,0.00023799,2]
[327791251,1716485434793,-259.41,0.00023799,2]
[327791252,1716485434803,-500.0,0.00023799,2]
[327791253,1716485434813,-500.0,0.00023799,2]
[327791254,1716485434824,-500.0,0.00023799,2]
[327791255,1716485434833,-500.0,0.00023799,2]
[327791256,1716485434844,-500.0,0.00023799,2]
[327791257,1716485434854,-865.55,0.00023799,2]
[327791258,1716485434864,-500.0,0.00023799,2]
[327791259,1716485434874,-221.09,0.00023799,2]
[327791260,1716485434884,-222.50266868,0.000238,2]
[327791261,1716485434895,-155.14496617,0.000238,2]
[327791262,1716485434904,-326.68270747,0.00023845,2]
[327791263,1716485434914,-293.0,0.00023867,2]
[327791264,1716485434924,-151.56768369,0.00023876,2]
[327791265,1716485434934,-3247.10503491,0.000239,2]
[327791266,1716485434944,-166.74979688,0.000239,2]
[327791267,1716485434954,-532.09926026,0.000239,2]
[327791268,1716485434964,-163.79165602,0.000239,2]
[327791269,1716485434974,-3622.91014414,0.000239,2]
[327791270,1716485434984,-219.59864148,0.00023942,2]
[327791271,1716485434995,-500.0,0.00023943,2]
[327791272,1716485435010,-500.0,0.00023943,2]
[327791273,1716485435020,-500.0,0.00023943,2]
[327791274,1716485435029,-500.0,0.00023943,2]
[327791275,1716485435040,-500.0,0.00023943,2]
[327791276,1716485435049,-500.0,0.00023943,2]
[327791277,1716485435060,-968.97,0.00023943,2]